Workbook

Sheet 一般
A1: 附表1:
A2: 2024年开平市一般公共预算调整情况表
J3: 单位：万元
A4: 收 入 | F4: 支 出
A5: 项目 | B5: 年初预算数 | C5: 调增额 | D5: 调减额 | E5: 调整预算数 | F5: 项目 | G5: 年初预算数 | H5: 调增额 | I5: 调减额 | J5: 调整预算数
A6: 一、地方一般公共预算收入 | B6: 319,629 | E6: =B6+C6-D6 -> 319,629 | F6: 一、一般公共预算支出 | G6: 597,107 | J6: =G6+H6-I6 -> 597,107
A7: 二、上年结转收入 | B7: 41,951 | C7: 8,604 | E7: =B7+C7-D7 -> 50,555 | F7: 二、转移性支出 | G7: =G8+G9 -> 53,252 | J7: 53,252
A8: 三、转移性收入 | B8: =B9+B10 -> 294,667 | D8: =D9+D10 -> 14,594 | E8: =B8+C8-D8 -> 280,073 | F8: （一）上解上级支出 | G8: 53,252 | J8: 53,252
A9: （一）上级补助收入 | B9: 294,667 | D9: 14,594 | E9: =B9+C9-D9 -> 280,073 | F9: （二）补助下级支出
A10: （二）下级上解收入 | F10: 三、债务转贷支出
A11: 四、债务转贷收入 | B11: =B12+B13 -> 71,574 | C11: =C12+C13 -> 4,969 | E11: =E12+E13 -> 76,543 | F11: （一）再融资债券支出
A12: （一）再融资债券收入 | B12: 71,574 | C12: 4,969 | E12: =B12+C12-D12 -> 76,543 | F12: （二）一般债券支出
A13: （二）一般债券收入 | F13: 四、债务还本支出 | G13: 78,500 | J13: =G13+H13-I13 -> 78,500
A14: 五、调入资金 | F14: 五、结转下年支出
A15: 六、动用预算稳定调节基金 | B15: 1,038 | E15: =B15+C15-D15 -> 1,038
A16: 七、区域间转移性收入 | C16: 1,021 | E16: =B16+C16-D16 -> 1,021
A17: 收入总计 | B17: =B6+B7+B8+B11+B14+B15 -> 728,859 | C17: =C6+C7+C8+C11+C14+C15+C16 -> 14,594 | D17: =D6+D7+D8+D11+D14+D15+D16 -> 14,594 | E17: =E6+E7+E8+E11+E14+E15+E16 -> 728,859 | F17: 支出总计 | G17: =G6+G7+G13+G14 -> 728,859 | J17: =J6+J7+J13+J14 -> 728,859

Sheet 一般本级
A1: 附表2：
A2: 2024年开平市本级一般公共预算调整情况表
J3: 单位：万元
A4: 收 入 | F4: 支 出
A5: 项目 | B5: 年初预算数 | C5: 调增额 | D5: 调减额 | E5: 调整预算数 | F5: 项目 | G5: 年初预算数 | H5: 调增额 | I5: 调减额 | J5: 调整预算数
A6: 一、地方一般公共预算收入 | B6: 156,938 | E6: =B6+C6-D6 -> 156,938 | F6: 一、一般公共预算支出 | G6: 515,184 | J6: =G6+H6-I6 -> 515,184
A7: 二、上年结转收入 | B7: 31,689 | C7: 8,604 | E7: =B7+C7-D7 -> 40,293 | F7: 二、转移性支出 | G7: =G8+G9 -> 69,591 | J7: 69,591
A8: 三、转移性收入 | B8: =B9+B10 -> 402,036 | D8: =D9+D10 -> 14,594 | E8: =B8+C8-D8 -> 387,442 | F8: （一）上解上级支出 | G8: 53,252 | J8: 53,252
A9: （一）上级补助收入 | B9: 292,378 | D9: 14,594 | E9: =B9+C9-D9 -> 277,784 | F9: （二）补助下级支出 | G9: 16,339 | J9: 16,339
A10: （二）市与镇一般性转移性支付收入 | B10: 109,658 | E10: =B10+C10-D10 -> 109,658 | F10: 三、债务转贷支出
A11: 四、债务转贷收入 | B11: =B12+B13 -> 71,574 | C11: =C12+C13 -> 4,969 | E11: =E12+E13 -> 76,543 | F11: （一）再融资债券支出
A12: （一）再融资债券收入 | B12: 71,574 | C12: 4,969 | E12: =B12+C12-D12 -> 76,543 | F12: （二）一般债券支出
A13: （二）一般债券收入 | F13: 四、债务还本支出 | G13: 78,500 | J13: =G13+H13-I13 -> 78,500
A14: 五、调入资金 | F14: 五、结转下年支出
A15: 六、动用预算稳定调节基金 | B15: 1,038 | E15: 1,038
A16: 七、区域间转移性收入 | C16: 1021 | E16: 1,021
A17: 收入总计 | B17: =B6+B7+B8+B11+B14+B15+B16 -> 663,275 | C17: =C6+C7+C8+C11+C14+C15+C16 -> 14,594 | D17: =D6+D7+D8+D11+D14+D15+D16 -> 14,594 | E17: =E6+E7+E8+E11+E14+E15+E16 -> 663,275 | F17: 支出总计 | G17: =G6+G7+G10+G13+G14 -> 663,275 | J17: =J6+J7+J10+J13+J14 -> 663,275

Sheet 基金
A1: 附表3:
A2: 2024年开平市政府性基金预算调整情况表
J3: 单位：万元
A4: 收 入 | F4: 支 出
A5: 项目 | B5: 年初预算数 | C5: 调增额 | D5: 调减额 | E5: 调整预算数 | F5: 项目 | G5: 年初预算数 | H5: 调增额 | I5: 调减额 | J5: 调整预算数
A6: 一、政府性基金预算收入 | B6: 220,870 | C6: =SUM(C7:C14) -> 22,107 | D6: =SUM(D7:D15) -> 63,815 | E6: =B6+C6-D6 -> 179,162 | F6: 一、政府性基金预算支出 | G6: 373,196 | H6: =SUM(H7:H21) -> 121,866 | I6: =SUM(I7:I21) -> 37,972 | J6: =G6+H6-I6 -> 457,090
A7: 国有土地使用权出让收入 | B7: 168,925 | D7: =50185-1500 -> 48,685 | E7: =B7+C7-D7 -> 120,240 | F7: 国有土地使用权出让收入安排的支出 | G7: 123,809 | I7: 22,844 | J7: =G7+H7-I7 -> 100,965
A8: 国有土地收益基金收入 | B8: 30,000 | D8: 8,380 | E8: 21,620 | F8: 国有土地收益基金安排的支出 | G8: 29,979 | I8: 8,378 | J8: 21,601
A9: 农业土地开发资金收入 | B9: 1,075 | C9: =1565-1500 -> 65 | E9: 1,140 | F9: 农业土地开发资金安排的支出 | G9: 1,503 | J9: 1,503
A10: 城市基础设施配套费收入 | B10: 13,000 | D10: 5,000 | E10: 8,000 | F10: 城市基础设施配套费安排的支出 | G10: 12,993 | I10: 5,008 | J10: 7,985
A11: 彩票公益金收入 | B11: 1,120 | C11: 380 | E11: 1,500 | F11: 彩票公益金安排的支出 | G11: 1,772 | H11: 521 | J11: 2,293
A12: 污水处理费收入 | B12: 6,750 | D12: 1,750 | E12: 5,000 | F12: 污水处理费安排的支出 | G12: 6,740 | I12: 1,739 | J12: 5,001
A13: 专项债务对应项目专项收入 | C13: 21,662 | E13: 21,662 | F13: 彩票发行销售机构业务费安排的支出 | G13: 112 | H13: 17 | J13: 129
A14: 其他政府性基金收入 | F14: 大中型水库库区基金安排的支出 | G14: 2 | J14: 2
A15: 彩票发行机构和彩票销售机构的业务费用 | F15: 国家电影事业发展专项资金安排的支出 | G15: 3 | I15: 3 | J15: =G15+H15-I15 -> 0
F16: 大中型水库移民后期扶持基金支出 | G16: 4,428 | H16: 880 | J16: 5,308
F17: 小型水库移民扶助基金安排的支出 | G17: 129 | J17: 129
F18: 其他政府性基金及对应专项债务收入安排的支出 | G18: 150,000 | H18: 120,000 | J18: 270,000
F19: 地方政府专项债务付息支出 | G19: 41,580 | H19: 315 | J19: 41,895
F20: 地方政府专项债务发行费用支出 | G20: 146 | H20: 130 | J20: 276
F21: 旅游发展基金支出 | H21: 3 | J21: 3
A22: 二、上年结转收入 | B22: 8,373 | C22: 1,258 | E22: =B22+C22-D22 -> 9,631 | F22: 二、转移性支出 | G22: =G23+G24 -> 8,446 | I22: 2,434 | J22: 6,012
A23: 三、转移性收入 | B23: =B24+B25 -> 2,999 | C23: =C24+C25 -> 1,910 | E23: =E24+E25 -> 4,909 | F23: （一）上解上级支出 | G23: 8,446 | I23: 2,434 | J23: =G23+H23-I23 -> 6,012
A24: （一）上级补助收入 | B24: 2,999 | C24: 1,910 | E24: =B24+C24-D24 -> 4,909 | F24: （二）补助下级支出
A25: （二）下级上解收入 | F25: 三、调出资金
A26: 四、债券转贷收入 | B26: =B27+B28 -> 150,000 | C26: =C27+C28 -> 120,000 | E26: =E27+E28 -> 270,000 | F26: 四、结转下年支出 | G26: 100 | J26: =G26+H26-I26 -> 100
A27: （一）再融资债券收入 | F27: 五、债券转贷支出
A28: （二）专项债券收入 | B28: 150,000 | C28: 120,000 | E28: =B28+C28-D28 -> 270,000 | F28: （一）再融资债券支出
A29: 五、调入资金 | F29: （二）专项债券支出
F30: 六、债务还本支出 | G30: 500 | J30: =G30+H30-I30 -> 500
A31: 收入总计 | B31: =B6+B22+B23+B26+B29 -> 382,242 | C31: =C6+C22+C23+C26+C29 -> 145,275 | D31: =D6+D22+D23+D26+D29 -> 63,815 | E31: =E6+E22+E23+E26+E29 -> 463,702 | F31: 支出总计 | G31: =G6+G22+G25+G26+G27+G30 -> 382,242 | H31: 121,866 | I31: 40,406 | J31: 463,702

Sheet 国资
A1: 附表4:
A2: 2024年开平市国有资本经营预算调整情况表
A3: 编制单位：开平市财政局 | J3: 单位：万元
A4: 收 入 | F4: 支 出
A5: 项 目 | B5: 年初 预算数 | C5: 调增额 | D5: 调减额 | E5: 调整 预算数 | F5: 项 目 | G5: 年初 预算数 | H5: 调增额 | I5: 调减额 | J5: 调整 预算数
A7: 国有资本经营预算收入 | B7: =B8+B9+B10+B11+B12 -> 42,788 | C7: =C8+C9+C10+C11+C12 -> 0 | D7: 16,000 | E7: =B7+C7-D7 -> 26,788 | F7: 国有资本经营预算支出 | G7: =G8+G9+G10+G11 -> 42,805 | H7: 0 | I7: 16,000 | J7: =J8+J9+J10+J11 -> 26,805 | M7: 55078 | N7: 33742
A8: （一）利润收入 | F8: （一）解决历史遗留问题及改革成本支出 | G8: 85 | J8: =G8+H8-I8 -> 85 | M8: =B7-M7 -> -12290 | N8: =G7-N7 -> 9063
A9: （二）股利、股息收入 | F9: （二）国有企业资本金注入 | G9: 20,000 | I9: 10,000 | J9: 10,000 | M9: =M8/M7 -> -22.31% | N9: =N8/N7 -> 26.86%
A10: （三）产权转让收入 | F10: （三）国有企业政策性补贴 | J10: 0 | M10: =E7-M7 -> -28290 | N10: =J7-N7 -> -6937
A11: （四）清算收入 | F11: （四）其他国有资本经营预算支出 | G11: 22,720 | I11: 6,000 | J11: 16,720 | M11: =M10/M7 -> -51.36% | N11: =N10/N7 -> -20.56%
A12: （五）其他国有资本经营预算收入 | B12: 42,788 | D12: 16,000 | E12: =B12+C12-D12 -> 26,788
A14: 收入小计 | B14: =B7 -> 42,788 | C14: 0 | D14: 16,000 | E14: 26,788 | F14: 支出小计 | G14: 42,805 | H14: 0 | I14: 16,000 | J14: 26,805
A15: 转移性收入 | B15: =B16 -> 17 | C15: =C16 -> 0 | D15: =D16 -> 0 | E15: =E16 -> 17 | F15: 转移性支出
A16: 国有资本经营预算转移支付收入 | B16: 17 | E16: =B16+C16-D16 -> 17 | F16: （一）国有资本经营预算转移支付
F17: （二）调出资金
A19: 上年结转 | F19: 结转下年
A20: 收入总计 | B20: =B14+B15 -> 42,805 | C20: =C14+C15 -> 0 | D20: =D14+D15 -> 16,000 | E20: =E14+E15 -> 26,805 | F20: 支出总计 | G20: =G19+G14+G15 -> 42,805 | H20: 0 | I20: 16,000 | J20: =J14+J15+J19 -> 26,805

Sheet 一般债
A1: 附表5：
A2: 2024年开平市新增一般债务限额安排项目情况表
H3: 单位：万元
A4: 序号 | B4: 县（市、区） | C4: 项目名称 | D4: 项目单位 | E4: 项目领域 | F4: 建设状态 | G4: 项目总投资 | H4: 安排金额
A5: 1 | B5: 开平市 | C5: 无

Sheet 专项债
A1: 附表6:
A2: 2024年开平市新增专项债务限额安排项目情况表
H3: 单位：万元
A4: 序号 | B4: 县（市、区） | C4: 项目名称 | D4: 项目单位 | E4: 项目领域 | F4: 建设 状态 | G4: 项目总投资 | H4: 安排金额
I5: 其中：资本金
A6: 合 计 | G6: =SUM(G7:G34) -> 1,920,434.76 | H6: 270,000.00 | I6: 0
A7: 1 | B7: 开平市 | C7: 广东省江门市开平市潭江大道地下停车场及配套设施项目 | D7: 开平市城市管理和综合执法局 | E7: 城市停车场 | F7: 在建 | G7: 71,205.35 | H7: 5,000.00
A8: 2 | B8: 开平市 | C8: 开平市城镇污水处理及管网工程 | D8: 开平市城市管理和综合执法局 | E8: 城镇污水垃圾收集处理 | F8: 在建 | G8: 112,063.00 | H8: 10,000.00
A9: 3 | B9: 开平市 | C9: 开平市城区排水设施提升改造工程 | D9: 开平市城市管理和综合执法局 | E9: 供排水 | F9: 在建 | G9: 117,038.00 | H9: 10,000.00
A10: 4 | B10: 开平市 | C10: 广东省江门市开平市老旧城区更新改造项目 | D10: 开平市住房和城乡建设局 | E10: 城镇老旧小区改造 | F10: 在建 | G10: 48,616.72 | H10: 11,000.00
A11: 5 | B11: 开平市 | C11: 广东省江门市开平市粮食仓储加工及物流项目 | D11: 开平市发展和改革局 | E11: 城乡冷链物流设施 | F11: 在建 | G11: 40,084.68 | H11: 2,500.00
A12: 6 | B12: 开平市 | C12: 广东省江门市西江潭江流域跨界重点支流综合治理工程（一期）开平段 | D12: 开平市水资源开发管理中心 | E12: 水利 | F12: 在建 | G12: 73,150.00 | H12: 7,000.00
A13: 7 | B13: 开平市 | C13: 广东省江门市开平市中心医院整体升级建设项目 | D13: 开平市中心医院 | E13: 卫生健康（含应急医疗救治设施、公共卫生设施） | F13: 在建 | G13: 16,000.00 | H13: 4,000.00
A14: 8 | B14: 开平市 | C14: 开平市水口医院新建医养结合综合大楼及配套项目 | D14: 开平市水口医院 | E14: 卫生健康（含应急医疗救治设施、公共卫生设施） | F14: 在建 | G14: 11,957.00 | H14: 5,000.00
A15: 9 | B15: 开平市 | C15: 广东省江门市开平市三埠新港临港产业园区基础设施建设项目 | D15: 开平市人民政府三埠街道办事处 | E15: 产业园区基础设施（主要支持国家级、省级产业园区基础设施） | F15: 在建 | G15: 119,664.00 | H15: 20,000.00
A16: 10 | B16: 开平市 | C16: 广东省江门市开平市三埠香山墓园生态园建设项目 | D16: 开平市人民政府三埠街道办事处 | E16: 其他社会事业 | F16: 在建 | G16: 10,702.88 | H16: 4,000.00
A17: 11 | B17: 开平市 | C17: 广东省江门市开平市开元工业园新区建设项目 | D17: 开平市人民政府长沙街道办事处 | E17: 产业园区基础设施（主要支持国家级、省级产业园区基础设施） | F17: 在建 | G17: 147,439.42 | H17: 25,950.00
A18: 12 | B18: 开平市 | C18: 广东省江门市开平市国际卫浴创新基地建设项目（一期） | D18: 开平市水口镇人民政府 | E18: 产业园区基础设施（主要支持国家级、省级产业园区基础设施） | F18: 在建 | G18: 120,249.75 | H18: 33,000.00
A19: 13 | B19: 开平市 | C19: 中国水口水暖卫浴生产基地建设项目 | D19: 开平市水口镇人民政府 | E19: 产业园区基础设施（主要支持国家级、省级产业园区基础设施） | F19: 未开工 | G19: 134,757.08 | H19: 21,000.00
A20: 14 | B20: 开平市 | C20: 广东省江门市开平市水口镇城市停车场项目 | D20: 开平市水口镇人民政府 | E20: 城市停车场 | F20: 未开工 | G20: 28,691.46 | H20: 7,000.00
A21: 15 | B21: 开平市 | C21: 赤坎新区智慧停车场项目 | D21: 开平市赤坎镇人民政府 | E21: 城市停车场 | F21: 在建 | G21: 50,000.00 | H21: 4,000.00
A22: 16 | B22: 开平市 | C22: 广东省江门市开平市赤坎古镇周边乡村振兴示范项目 | D22: 开平市赤坎镇人民政府 | E22: 农业 | F22: 在建 | G22: 62,500.00 | H22: 8,000.00
A23: 17 | B23: 开平市 | C23: 广东省江门市开平市翠山湖生物医药产业专业园基础设施配套项目 | D23: 开平市翠山湖产业转移工业园管理委员会 | E23: 产业园区基础设施（主要支持国家级、省级产业园区基础设施） | F23: 在建 | G23: 328,380.06 | H23: 25,600.00
A24: 18 | B24: 开平市 | C24: 广东省江门翠山湖高新技术产业开发区基础设施配套项目 | D24: 开平市翠山湖产业转移工业园管理委员会 | E24: 产业园区基础设施（主要支持国家级、省级产业园区基础设施） | F24: 在建 | G24: 147,208.31 | H24: 29,550.00
A25: 19 | B25: 开平市 | C25: 广东省江门市开平市侨梦苑华侨华人创新产业集聚区配套设施建设项目 | D25: 开平市翠山湖产业转移工业园管理委员会 | E25: 产业园区基础设施（主要支持国家级、省级产业园区基础设施） | F25: 在建 | G25: 34,757.64 | H25: 2,900.00
A26: 20 | B26: 开平市 | C26: 广东省江门市开平市苍城镇胶粘产业专业镇园区配套项目 | D26: 开平市苍城镇人民政府 | E26: 产业园区基础设施（主要支持国家级、省级产业园区基础设施） | F26: 在建 | G26: 15,000.00 | H26: 8,000.00
A27: 21 | B27: 开平市 | C27: 广东省江门市开平市塘口镇全域土地综合整治试点工程项目 | D27: 开平市塘口镇人民政府 | E27: 农业 | F27: 在建 | G27: 46,003.21 | H27: 3,000.00
A28: 22 | B28: 开平市 | C28: 广东省江门市开平市塘口镇世遗文化乡村示范带建设项目 | D28: 开平市塘口镇人民政府 | E28: 农业 | F28: 在建 | G28: 38,090.09 | H28: 2,000.00
A29: 23 | B29: 开平市 | C29: 广东省江门市开平市龙胜新能源汽配示范基地扩园建设项目 | D29: 开平市龙胜镇人民政府 | E29: 产业园区基础设施（主要支持国家级、省级产业园区基础设施） | F29: 在建 | G29: 25,000.00 | H29: 2,000.00
A30: 24 | B30: 开平市 | C30: 广东省江门市开平市百合镇农村环境综合治理项目 | D30: 开平市百合镇人民政府 | E30: 农业 | F30: 在建 | G30: 32,070.59 | H30: 1,000.00
A31: 25 | B31: 开平市 | C31: 广东省江门市开平市百合镇先进材料产业集群区建设项目 | D31: 开平市百合镇人民政府 | E31: 产业园区基础设施（主要支持国家级、省级产业园区基础设施） | F31: 在建 | G31: 29,706.02 | H31: 5,000.00
A32: 26 | B32: 开平市 | C32: 广东省江门市开平市百合静脉产业园配套项目 | D32: 开平市百合镇人民政府 | E32: 产业园区基础设施（主要支持国家级、省级产业园区基础设施） | F32: 在建 | G32: 10,000.00 | H32: 1,500.00
A33: 27 | B33: 开平市 | C33: 开平市赤水镇水仔口健康食品产业园基础设施配套工程 | D33: 开平市赤水镇人民政府 | E33: 产业园区基础设施（主要支持国家级、省级产业园区基础设施） | F33: 在建 | G33: 20,098.70 | H33: 7,000.00
A34: 28 | B34: 开平市 | C34: 广东省江门市开平市马冈鹅现代农业基础设施配套工程项目 | D34: 开平市马冈镇人民政府 | E34: 产业园区基础设施（主要支持国家级、省级产业园区基础设施） | F34: 在建 | G34: 30,000.80 | H34: 5,000.00
